Body,Body Name,Date,Transaction Number,Amount,Supplier Name,Supplier ID,Expense Area,Expense Type,Expense Code,Extended Description ,Service Code,Service Label,Service Division Label,Service Division Code
http://statistics.data.gov.uk/id/local-authority/16UF,Eden District Council,07/02/2014,133952,751,PROBRAND LIMITED,PRO008,Information Technology Manager,Computer equipment,2061,HX193DPB LED MONITORS,INFTEC,Information Technology,00102,Information Technology
http://statistics.data.gov.uk/id/local-authority/16UF,Eden District Council,07/02/2014,133888,1725.81,ROCOM (NYCOMM),ROC004,Information Technology Manager,Equipment � purchase,2000,HEADSETS/PHONES,RENEWALS,Repairs & Renewals Fund,06628,New Telephony System 2012
http://statistics.data.gov.uk/id/local-authority/16UF,Eden District Council,07/02/2014,133898,1501.5,NORTH LAKES MARQUEE HIRE,NOR054,Communities Manager,Promotional activity,2084,MARQUEE/TABLE/LIGHT HIRE,MARKET,Markets,02382,Mrkts - Penrith Promotional Space
http://statistics.data.gov.uk/id/local-authority/16UF,Eden District Council,07/02/2014,133900,3449.27,CUMBRIA COUNTY COUNCIL,CCC002,Engineering Manager,Winter Gritting,1100,SALTING/SNOW CLEARANCE EDC CAR PARKS ETC,OFFSTR,Vehicle Parking Off Street,02167,Vehicle parking
http://statistics.data.gov.uk/id/local-authority/16UF,Eden District Council,07/02/2014,131386,2335.28,ENTERPRISE MANAGED SERVICES LTD,TFE001,Engineering Manager,Building works,5502,DDA ALTERATIONS & REFURBISHMENT,COMCAP,Community Capital,06122,DDA Act Penrith Museum
http://statistics.data.gov.uk/id/local-authority/16UF,Eden District Council,07/02/2014,133560,2848.34,VODAFONE LTD FORMERLY CABLE & WIRELESS UK,CAB001,Information Technology Manager,Governement Connect,2183,SERVICES,INFTEC,Information Technology,00102,Information Technology
http://statistics.data.gov.uk/id/local-authority/16UF,Eden District Council,07/02/2014,133624,6656.39,EDEN HOUSING ASSOCIATION LTD,EDE001,Environmental Services,Hire of premises,1029,TEMPORARY ACCOMMODATION 7/10/13-5/01/14,HOMLES,Homelessness,02296,Homelessness Grant Fund
http://statistics.data.gov.uk/id/local-authority/16UF,Eden District Council,07/02/2014,133633,23724,EDEN HOUSING ASSOCIATION LTD,EDE001,Environmental Services,Other charges for services,2047,HOMELESSNESS ADVICE  7.10.13-5.1.14 +ANN,HOMLES,Homelessness,02296,Homelessness Grant Fund
http://statistics.data.gov.uk/id/local-authority/16UF,Eden District Council,07/02/2014,133748,1250,PETE BAILEY,BAI016,Environmental Services,Miscellaneous,2092,CUMBRIA HOUSING GROUP 14.01.14,HOMLES,Homelessness,10394,Riverside Housing Grant
http://statistics.data.gov.uk/id/local-authority/16UF,Eden District Council,07/02/2014,133871,1148.9,CUMBRIA COUNTY COUNCIL,CCC002,Engineering Manager,Professional fees,2045,SEARCHES,LANDCH,Land Charges,01002,Land Charges
http://statistics.data.gov.uk/id/local-authority/16UF,Eden District Council,07/02/2014,133872,1111,NPD NORTH LTD,NPD001,Communities Manager,Promotional activity,2084,VISIT EDEN 2014,MARKET,Markets,02382,Mrkts - Penrith Promotional Space
http://statistics.data.gov.uk/id/local-authority/16UF,Eden District Council,07/02/2014,133873,809.92,VODAFONE LTD FORMERLY CABLE & WIRELESS UK,CAB001,Information Technology Manager,Telephone,2055,RENTALS/CHARGES,INFTEC,Information Technology,00102,Information Technology
http://statistics.data.gov.uk/id/local-authority/16UF,Eden District Council,07/02/2014,133949,2000,NEOPOST LIMITED,NEO001,Corporate Services Manager,Postages,2054,FRANKING MACHINE REFILLS,CENTRA,Central Expenses,00205,Postages Town Hall
http://statistics.data.gov.uk/id/local-authority/16UF,Eden District Council,07/02/2014,133951,5470,ENTERPRISE PROSPECTS LTD,ENT004,Chief Executive's,Agency Staff,0003,JANUARY 2014 R HOOPER,CHIEXE,Chief Executive,00050,Chief Executive
http://statistics.data.gov.uk/id/local-authority/16UF,Eden District Council,07/02/2014,133989,550,CUMBRIA COUNTY COUNCIL,CCC015,Engineering Manager,Building Maintenance,1000,ROAD CLOSURE APPLICATION FEE WALL REPAIR SHAP,CLCHYD,Closed Church Yards,02242,Closed Church Yards
http://statistics.data.gov.uk/id/local-authority/16UF,Eden District Council,07/02/2014,134018,1350,BT PAYMENT SERVICES LTD,BRI002,Information Technology Manager,Telephone,2055,PRIVATE CIRCUIT BILL,CENTRA,Central Expenses,00104,Telephones
http://statistics.data.gov.uk/id/local-authority/16UF,Eden District Council,07/02/2014,134081,1720.5,CAPITA SYMONDS LIMITED,CAP002,Planning Services,Professional fees,2045,ARBORICULTURAL SERVICE JANUARY 2014,CONSER,Environmental Enhancement & Conversation,03012,Aboricutural Advice
http://statistics.data.gov.uk/id/local-authority/16UF,Eden District Council,07/02/2014,133756,1212.81,ENTERPRISE MANAGED SERVICES LTD,TFE001,Engineering Manager,Building works,5502,PENRITH MUSEUM ALTERATIONS,COMCAP,Community Capital,06122,DDA Act Penrith Museum
http://statistics.data.gov.uk/id/local-authority/16UF,Eden District Council,07/02/2014,133757,-2335.28,ENTERPRISE MANAGED SERVICES LTD,TFE001,Engineering Manager,Building works,5502,CREDIT PENRITH MUSEUM ALTERATIONS,COMCAP,Community Capital,06122,DDA Act Penrith Museum
http://statistics.data.gov.uk/id/local-authority/16UF,Eden District Council,07/02/2014,133950,10546.5,TOPCO 254 LTD,RSM001,Financial Services Manager,Professional fees,2045,CONSULTANCY FLEMING CLAIM,CORPOR,Corporate Costs,01146,VAT Claims
http://statistics.data.gov.uk/id/local-authority/16UF,Eden District Council,07/02/2014,134085,975.39,ENTERPRISE MANAGED SERVICES LTD,TFE001,Legal Services Manager,Caretaking/security (contract),1003,BC241,COMMEM,Committee and Member Costs,01078,Servicing Committees
http://statistics.data.gov.uk/id/local-authority/16UF,Eden District Council,14/02/2014,134103,1912,G C A GARDENING SERVICES,GCA001,Engineering Manager,Miscellaneous,2092,PHASE 1 NICHOL HILL,LANDMA,Land Management,01007,Land Management
http://statistics.data.gov.uk/id/local-authority/16UF,Eden District Council,14/02/2014,134104,847.2,G C A GARDENING SERVICES,GCA001,Engineering Manager,Building Maintenance,1000,REPAIR BROKEN GATES JENKINS FIELD,LANDMA,Land Management,01007,Land Management
http://statistics.data.gov.uk/id/local-authority/16UF,Eden District Council,14/02/2014,134125,950,IDOX SOFTWARE LIMITED,IDO003,Legal Services Manager,Software � maintenance,2067,50% ON ORDER ACCORDING TO AGREEMENT,LICENC,Licensing,03057,Licensing Act 2003
http://statistics.data.gov.uk/id/local-authority/16UF,Eden District Council,14/02/2014,134005,1182,UNIT4 BUSINESS SOFTWARE (IRELAND) LTD,UNI038,Financial Services Manager,Balance brought forward BS,6000,TRANSFARE SUPPORT 01/04 /14 - 31/03/15,LICENC,Licensing,10263,Payments in Adv - Gf
http://statistics.data.gov.uk/id/local-authority/16UF,Eden District Council,14/02/2014,133612,735.69,ADT FIRE AND SECURITY,ADT001,Engineering Manager,Rental/Maintenance of Door Entry System,1052,MAINTENANCE ACCESS CONTROL SYSTEM 14/15,ADMBLD,Administrative Buildings,00502,Mansion House
http://statistics.data.gov.uk/id/local-authority/16UF,Eden District Council,14/02/2014,134001,3332,CUMBRIA RURAL HOUSING TRUST,CUM020,Environmental Services,Affordable Fund,5521,WORK UNDERTAKEN FOR SLA OCT 13 - JAN 14,HOUCAP,Housing Capital,06119,Housing Single Capital Pot
http://statistics.data.gov.uk/id/local-authority/16UF,Eden District Council,14/02/2014,134003,816.2,PENRITH BUILDING SOCIETY,PEN065,Environmental Services,Grants and contributions,2079,redacted information,OHOUSG,Other Housing,02388,Mortgage Indemnitiy Grants
http://statistics.data.gov.uk/id/local-authority/16UF,Eden District Council,14/02/2014,134004,2151.8,PENRITH BUILDING SOCIETY,PEN065,Environmental Services,Grants and contributions,2079,redacted information,OHOUSG,Other Housing,02388,Mortgage Indemnitiy Grants
http://statistics.data.gov.uk/id/local-authority/16UF,Eden District Council,14/02/2014,134021,2260.04,LOCAL GOVERNMENT ASSOCIATION,LOC005,Engineering Manager,Legal and court costs,2046,PROPERTY LEASRCHES LITIGATION,LANDCH,Land Charges,01002,Land Charges
http://statistics.data.gov.uk/id/local-authority/16UF,Eden District Council,14/02/2014,134082,999.25,UNITED UTILITIES WATER LTD,UNI008,Engineering Manager,Water charges � metered,1032,PCS BROAD CLOSE APPLEBY 26.10.13-23.01.14,PUBCON,Public Conveniences,02282,Appleby Broad Close Public Convenience
http://statistics.data.gov.uk/id/local-authority/16UF,Eden District Council,14/02/2014,134086,17521.73,TOTALMOBILE LTD,CON001,Financial Services Manager,Balance brought forward BS,6000,SUPPORT 01.04.2014 - 31.03.2015,LICENC,Licensing,10263,Payments in Adv - Gf
http://statistics.data.gov.uk/id/local-authority/16UF,Eden District Council,14/02/2014,134087,3355,DOLPHIN MOBILITY YORKSHIRE & CUMBRIA LTD,DOL001,Environmental Services,Capital grants,5505,FINAL PAYMENT,MEREGR,1996 Mandatory Renovation Grants,06035,Disabled Facility Grants
http://statistics.data.gov.uk/id/local-authority/16UF,Eden District Council,14/02/2014,134089,3220,HANDICARE ACCESSIBILITY LTD,FRE002,Environmental Services,Capital grants,5505,FINAL PAYMENT ,MEREGR,1996 Mandatory Renovation Grants,06035,Disabled Facility Grants
http://statistics.data.gov.uk/id/local-authority/16UF,Eden District Council,14/02/2014,134092,780.48,BADENOCH AND CLARK,ADE001,Revenue/Benefits Manager,Staff Contingency,0004,MR A METCALFE 24/01/14,REVBEN,Revenue & Benefits,00106,Revenues
http://statistics.data.gov.uk/id/local-authority/16UF,Eden District Council,14/02/2014,134093,588,Denise Calvert Ltd,CAL019,Revenue/Benefits Manager,Supplies general,2015,BENEFIT WORK 12/12/13 & 17/12/13,CTXBEN,Council Tax Benefits,01164,Local Council Tax Scheme
http://statistics.data.gov.uk/id/local-authority/16UF,Eden District Council,14/02/2014,134095,1106.91,ROYAL MAIL NW,ROY001,Revenue/Benefits Manager,Postages,2054,POSTAGE 08/01/14 - 28/01/14,REVBEN,Revenue & Benefits,00106,Revenues
http://statistics.data.gov.uk/id/local-authority/16UF,Eden District Council,14/02/2014,134105,2350,BAKER TILLY,BAK009,Director of Corporate and Legal Services,Professional fees,2045,PROFESSIONAL SERVICES RE MEMBERS EXPENSES,COMMEM,Committee and Member Costs,01079,Travel and Subsistance
http://statistics.data.gov.uk/id/local-authority/16UF,Eden District Council,14/02/2014,134118,606,HM COURTS SERVICE,HMC007,Revenue/Benefits Manager,Legal and court costs,2046,CTNNDRLOS 26.02.14,LOCTAX,Collection of Local Taxation,01006,Council Tax
http://statistics.data.gov.uk/id/local-authority/16UF,Eden District Council,14/02/2014,134121,1595.23,ENTERPRISE MANAGED SERVICES LTD,TFE001,Engineering Manager,Ground Maintenance SOR & Dayworks,1088,GM42,CEMETE,Cemeteries,02228,Appleby Cemetery
http://statistics.data.gov.uk/id/local-authority/16UF,Eden District Council,14/02/2014,134122,2013.75,M TAYLOR ASSOCIATES LTD,TAY017,Human Resources Manager,Workforce Development Plan Activity,2229,HR SUPPORT JANUARY 2014,STADEV,Staff Development,00222,Central Training Budget
http://statistics.data.gov.uk/id/local-authority/16UF,Eden District Council,14/02/2014,134179,2300,ADAM WELLINGS CONSULTING LTD,ADA003,Communities Manager,Professional fees,2045,LGA PROJECT NEWTON RIGG COLLEGE JAN 2014,EDEVPR,Economic Development and Promotion,02001,Economic Promotion
http://statistics.data.gov.uk/id/local-authority/16UF,Eden District Council,21/02/2014,134126,700,COLESKNAPP,COL025,Communities Manager,Building Maintenance - Leisure,1101,"SURVEYS ETC FRENCHFIELD, APPLEBY POOL",LEICEN,Eden Leisure Centre & Appleby Swimming P,02097,Penrith Leisure Centre
http://statistics.data.gov.uk/id/local-authority/16UF,Eden District Council,21/02/2014,134199,624,ELECTRICITY NORTH WEST LTD,ELE005,Engineering Manager,Professional fees,2045,POLE 3 OLD SCHOOL HOUSE PATTERDALE,FOOLIG,Footway Lighting,02258,Footway lighting
http://statistics.data.gov.uk/id/local-authority/16UF,Eden District Council,21/02/2014,134213,764.1,BT PHONE BOOK,BTP001,Communities Director,Advertising,2086,ADVERTISING,COMMSV,Communications Services,01127,Corporate Advertising
http://statistics.data.gov.uk/id/local-authority/16UF,Eden District Council,21/02/2014,134235,1327.72,G C A GARDENING SERVICES,GCA001,Engineering Manager,Miscellaneous,2092,PHASE 2 NICHOL HILL,LANDMA,Land Management,01007,Land Management
http://statistics.data.gov.uk/id/local-authority/16UF,Eden District Council,21/02/2014,133981,727.4,ROCOM (NYCOMM),ROC004,Information Technology Manager,Equipment � purchase,2000,PLX CALISTO P240-M,RENEWALS,Repairs & Renewals Fund,06628,New Telephony System 2012
http://statistics.data.gov.uk/id/local-authority/16UF,Eden District Council,21/02/2014,134113,1628.52,HEATONS OFFICE SOLUTIONS LTD,LAK004,Communities Manager,Printing and stationary,2037,STATIONERY/PAPER,COMDEV,Community Development & Engagement,02052,Alston Council Centre
http://statistics.data.gov.uk/id/local-authority/16UF,Eden District Council,21/02/2014,133984,611.1,ROCOM (NYCOMM),ROC004,Information Technology Manager,Equipment � purchase,2000,PLX CALISTO P240-M,RENEWALS,Repairs & Renewals Fund,06628,New Telephony System 2012
http://statistics.data.gov.uk/id/local-authority/16UF,Eden District Council,21/02/2014,134080,1939.32,CIVICA UK LTD,CIV002,Financial Services Manager,Balance brought forward BS,6000,FAST PORTAL/2 LICENCES ESCROW SURCHARGE,LICENC,Licensing,10263,Payments in Adv - Gf
http://statistics.data.gov.uk/id/local-authority/16UF,Eden District Council,21/02/2014,134108,8130.37,CIVICA UK LTD,CIV002,Financial Services Manager,Balance brought forward BS,6000,BS7666 GAZETTEER CARTOLOGY 10 LICENCES14,LICENC,Licensing,10263,Payments in Adv - Gf
http://statistics.data.gov.uk/id/local-authority/16UF,Eden District Council,21/02/2014,134134,8802.5,CUMBRIA COUNTY COUNCIL,CCC002,Engineering Manager,Building works,5502,RECHARGE HARTNESS ROAD - MICRO ASPHALT,LANDMA,Land Management,06002,Gilwilly Extension Eden Business park
http://statistics.data.gov.uk/id/local-authority/16UF,Eden District Council,21/02/2014,134217,3315,C W COX & SONS (KENDAL)  LTD,COX001,Environmental Services,Capital grants,5505,130036/ 4 ,MEREGR,1996 Mandatory Renovation Grants,06035,Disabled Facility Grants
http://statistics.data.gov.uk/id/local-authority/16UF,Eden District Council,21/02/2014,134218,1898.79,ATKINSON BUILDING CONTRACTORS,ATK009,Environmental Services,Capital grants,5505,130037/ 31,MEREGR,1996 Mandatory Renovation Grants,06035,Disabled Facility Grants
http://statistics.data.gov.uk/id/local-authority/16UF,Eden District Council,21/02/2014,134219,2200,redacted information,DAV012,Environmental Services,Empty Property Grants,5527,130001/ 6 ,DIREGR,1996 Discretionary Renovation Grants,06034,1996 Discretionary Renovation Grants
http://statistics.data.gov.uk/id/local-authority/16UF,Eden District Council,21/02/2014,134220,1000,redacted information,CAL017,Environmental Services,Landlords Grants,5525,130062 1 ,DIREGR,1996 Discretionary Renovation Grants,06034,1996 Discretionary Renovation Grants
http://statistics.data.gov.uk/id/local-authority/16UF,Eden District Council,21/02/2014,134221,2085,FLORENCE MADDEN ASSOCIATES,FLO004,Human Resources Manager,Training Expenses,0060,TRAINING 12-14 MAR & 16-17 APR 2014,STADEV,Staff Development,00225,Staff Training Communities
http://statistics.data.gov.uk/id/local-authority/16UF,Eden District Council,21/02/2014,134243,8179,ASTOR BANNERMAN (MEDICAL) LTD,AST007,Environmental Services,Capital grants,5505,130037/ 31,MEREGR,1996 Mandatory Renovation Grants,06035,Disabled Facility Grants
http://statistics.data.gov.uk/id/local-authority/16UF,Eden District Council,21/02/2014,134244,3180,DOLPHIN MOBILITY YORKSHIRE & CUMBRIA LTD,DOL001,Environmental Services,Capital grants,5505,130052/ ,MEREGR,1996 Mandatory Renovation Grants,06035,Disabled Facility Grants
http://statistics.data.gov.uk/id/local-authority/16UF,Eden District Council,21/02/2014,134127,2196.32,PENRITH BUILDING SOCIETY,PEN065,Environmental Services,CLG GRANT EXPENDITURE,2157,7388,HOMLES,Homelessness,02296,Homelessness Grant Fund
http://statistics.data.gov.uk/id/local-authority/16UF,Eden District Council,21/02/2014,134136,1840,WALTON GOODLAND LTD,WAL008,Engineering Manager,Professional fees,2045,VARIOUS LOCATIONS 1-31 JAN 2014,LANDMA,Land Management,01007,Land Management
http://statistics.data.gov.uk/id/local-authority/16UF,Eden District Council,21/02/2014,134190,1378.96,GATESTRAVEL,GAT004,Environmental Services,Public transport,1503,RAIL TRAVEL/ACCOMMODATION,SUSPAC,Suspense Account,09420,District Councils Network
http://statistics.data.gov.uk/id/local-authority/16UF,Eden District Council,21/02/2014,134204,2923.25,ENTERPRISE MANAGED SERVICES LTD,TFE001,Engineering Manager,FL  Contract,3300,FL-11/2013,FOOLIG,Footway Lighting,02258,Footway lighting
http://statistics.data.gov.uk/id/local-authority/16UF,Eden District Council,21/02/2014,134207,3406.62,ENTERPRISE MANAGED SERVICES LTD,TFE001,Engineering Manager,Street Cleaning Contract,3100,SC14,STRCLE,Street Cleaning,02248,Fly tipping on verge
http://statistics.data.gov.uk/id/local-authority/16UF,Eden District Council,21/02/2014,134242,3230,TOP NOTCH CONTRACTORS LTD,TOP003,Environmental Services,Capital grants,5505,130035/ 1,MEREGR,1996 Mandatory Renovation Grants,06035,Disabled Facility Grants
http://statistics.data.gov.uk/id/local-authority/16UF,Eden District Council,20/02/2014,134354,1602,BUSY BEES CHILDCARE VOUCHERS,BUS004,Planning Services,Child Care Voucher Scheme,0005,CHILDCARE VOUCHERS  FEB 14 DDR,PLASER,Planning Services,00304,Planning Services
http://statistics.data.gov.uk/id/local-authority/16UF,Eden District Council,28/02/2014,134326,1031.6,EGBERT H TAYLOR AND COMPANY LIMITED,EGB001,Engineering Manager,Supplies general,2015,PAPER LOCKING LID/LID ASSEMBLY KIT,RECYCL,Recycling,03047,Recycling
http://statistics.data.gov.uk/id/local-authority/16UF,Eden District Council,28/02/2014,134328,3824,HALAROSE LIMITED,HAL013,Legal Services Manager,Equipment � purchase,2000,KODAK i3200 SCANNER/FLATBED 3YR WARRANTY,REGELE,Register of Electors,01001,Register of Electors
http://statistics.data.gov.uk/id/local-authority/16UF,Eden District Council,28/02/2014,134344,1399.99,THE WAREHOUSE.COM LTD,THE009,Corporate Services Manager,Equipment � purchase,2000,SHREDDER MANSION HOUSE,CORSER,Corporate Services,00202,Corporate Services
http://statistics.data.gov.uk/id/local-authority/16UF,Eden District Council,28/02/2014,133366,724.15,ENTERPRISE MANAGED SERVICES LTD,TFE001,Environmental Services,Dog Contract Collection,3201,EDCEDEN14 STRAY DOGS NOVEMBER 2013,CODOGS,Community Wardens,03045,Dog Control
http://statistics.data.gov.uk/id/local-authority/16UF,Eden District Council,28/02/2014,134137,3501.36,E.ON UK PLC,EON001,Engineering Manager,Electricity,1022,STREET LIGHTING,FOOLIG,Footway Lighting,02258,Footway lighting
http://statistics.data.gov.uk/id/local-authority/16UF,Eden District Council,28/02/2014,134188,780.48,BADENOCH AND CLARK,ADE001,Revenue/Benefits Manager,Staff Contingency,0004,MR A METCALFE 31/01/14,REVBEN,Revenue & Benefits,00106,Revenues
http://statistics.data.gov.uk/id/local-authority/16UF,Eden District Council,28/02/2014,134191,573.17,BADENOCH AND CLARK,ADE001,Revenue/Benefits Manager,Staff Contingency,0004,MS H GRAHAM 31/01/14,REVBEN,Revenue & Benefits,00106,Revenues
http://statistics.data.gov.uk/id/local-authority/16UF,Eden District Council,28/02/2014,134193,3284.37,CIVICA UK LTD,CIV002,Revenue/Benefits Manager,Software � purchase,2066,LCOAL AUTHORITY DATA SHARING,BENFIT,Benefits,01142,HB Atlas Grant
http://statistics.data.gov.uk/id/local-authority/16UF,Eden District Council,28/02/2014,134196,3805.54,CARDS FOR GOOD CAUSES LIMITED,CAR027,Communities Manager,Expenditure,6006,CHARITY CHRISTMAS CARD SALES 2013,TAPTIC,Penrith TIC Trading Account,09237,Penrith TIC Charity Christmas Cards
http://statistics.data.gov.uk/id/local-authority/16UF,Eden District Council,28/02/2014,134200,874.17,ENTERPRISE MANAGED SERVICES LTD,TFE001,Environmental Services,Dog Contract O.O.H retainer,3200,KENNELLING/STRAY DOG COLLECTION FEB 14,CODOGS,Community Wardens,03045,Dog Control
http://statistics.data.gov.uk/id/local-authority/16UF,Eden District Council,28/02/2014,134229,15968.81,CARLISLE CITY COUNCIL,CAR015,Engineering Manager,Contract parking Service,3004,EDEN PARKING SERVICES JAN 2014,ONSTRE,Vehicle Parking On Street,02183,On street Parking
http://statistics.data.gov.uk/id/local-authority/16UF,Eden District Council,28/02/2014,134246,66315.31,ENTERPRISE MANAGED SERVICES LTD,TFE001,Engineering Manager,Contract refuse collection,3003,M-RC 23,REFCOL,Refuse Collection,03050,Clinical Expenditure
http://statistics.data.gov.uk/id/local-authority/16UF,Eden District Council,28/02/2014,134248,889.91,ENTERPRISE MANAGED SERVICES LTD,TFE001,Engineering Manager,Refuse Contract Dayworks,3012,RC16,REFCOL,Refuse Collection,03049,Refuse Collection Domestic
http://statistics.data.gov.uk/id/local-authority/16UF,Eden District Council,28/02/2014,134249,775,NPS NORTH WEST LTD,NPS001,Environmental Services,Professional fees,2045,PROFESSIONAL SERVICES,OHOUSG,Other Housing,02383,Affordable Housing Fund Revenue
http://statistics.data.gov.uk/id/local-authority/16UF,Eden District Council,28/02/2014,134251,567.07,BADENOCH AND CLARK,ADE001,Revenue/Benefits Manager,Staff Contingency,0004,MS H GRAHAM 07.02.14,REVBEN,Revenue & Benefits,00106,Revenues
http://statistics.data.gov.uk/id/local-authority/16UF,Eden District Council,28/02/2014,134252,780.48,BADENOCH AND CLARK,ADE001,Revenue/Benefits Manager,Staff Contingency,0004,MR A METCALFE 07.02.14,REVBEN,Revenue & Benefits,00106,Revenues
http://statistics.data.gov.uk/id/local-authority/16UF,Eden District Council,28/02/2014,134257,1245.68,BRITISH GAS BUSINESS,BRI032,Engineering Manager,Gas,1023,TOWN HALL,ADMBLD,Administrative Buildings,00500,Town Hall
http://statistics.data.gov.uk/id/local-authority/16UF,Eden District Council,28/02/2014,134258,1069.14,BRITISH GAS BUSINESS,BRI032,Engineering Manager,Gas,1023,MANSION HOUSE,ADMBLD,Administrative Buildings,00502,Mansion House
http://statistics.data.gov.uk/id/local-authority/16UF,Eden District Council,28/02/2014,134306,562.5,ROSIE SERGISON HR/TRAINING CONSULTANT,SER003,Human Resources Manager,Workforce Development Plan Activity,2229,HR SUPPORT FEB 2014,STADEV,Staff Development,00222,Central Training Budget
http://statistics.data.gov.uk/id/local-authority/16UF,Eden District Council,28/02/2014,134316,2116.46,HANDICARE ACCESSIBILITY LTD,FRE002,Environmental Services,Capital grants,5505,130028/,MEREGR,1996 Mandatory Renovation Grants,06035,Disabled Facility Grants
http://statistics.data.gov.uk/id/local-authority/16UF,Eden District Council,28/02/2014,134330,16550.88,ENTERPRISE MANAGED SERVICES LTD,TFE001,Environmental Services,Street Cleaning Contract,3100,M-SC23,APFAIR,Appleby Fair,03036,Appleby Fair
http://statistics.data.gov.uk/id/local-authority/16UF,Eden District Council,28/02/2014,134331,876.28,RENTOKIL INITIAL PEST CONTROL,REN009,Environmental Services,Pest Control,3400,PREMISES CONTRACT,PESCON,Pest Control,03043,Pest Control
http://statistics.data.gov.uk/id/local-authority/16UF,Eden District Council,28/02/2014,134338,19202.78,CUMBRIA WASTE RECYCLING LTD,CUM022,Engineering Manager,Recycling - Bag & Box,3600,GB-010,RECYCL,Recycling,03047,Recycling
http://statistics.data.gov.uk/id/local-authority/16UF,Eden District Council,28/02/2014,134339,21800,CUMBRIA WASTE RECYCLING LTD,CUM022,Engineering Manager,Recycling - Garden Waste,3602,CW-010,RECYCL,Recycling,03047,Recycling
http://statistics.data.gov.uk/id/local-authority/16UF,Eden District Council,28/02/2014,134351,7208.33,CUMBRIA WASTE RECYCLING LTD,CUM022,Engineering Manager,Recycling  - Bring Sites,3601,BS-19,RECYCL,Recycling,03047,Recycling
http://statistics.data.gov.uk/id/local-authority/16UF,Eden District Council,28/02/2014,134352,591.46,BADENOCH AND CLARK,ADE001,Revenue/Benefits Manager,Staff Contingency,0004,MS H GRAHAM 14.02.14,REVBEN,Revenue & Benefits,00106,Revenues
http://statistics.data.gov.uk/id/local-authority/16UF,Eden District Council,28/02/2014,134356,780.48,BADENOCH AND CLARK,ADE001,Revenue/Benefits Manager,Staff Contingency,0004,MR A METCALFE 14.02.14,REVBEN,Revenue & Benefits,00106,Revenues
http://statistics.data.gov.uk/id/local-authority/16UF,Eden District Council,41687,127214,977.67,Santander,san 011,Financial Services Manager,Bank charges,2088,Cahrges Jan 2014,CORPOR,Corporate Costs,01064,Bank Charges
